[Event "POL-chT 1st League 2020"]
[Site "Ustron"]
[Date "2020.09.07"]
[Round "3.24"]
[White "Kucharska, Honorata"]
[Black "Przezdziecka, Ewa"]
[Result "1/2-1/2"]
[ECO "D02"]
[WhiteElo "2237"]
[BlackElo "2166"]
[Annotator "ChessBase"]
[PlyCount "77"]
[EventDate "2020.09.05"]
[EventType "team-tourn"]
[EventCountry "POL"]
[SourceTitle "playchess.com"]
[Source "ChessBase"]
[SourceQuality "1"]
[WhiteTeam "MKSz Rybnik"]
[BlackTeam "Bialy Krol Wisznia Mala"]
[WhiteTeamCountry "POL"]
[BlackTeamCountry "POL"]
[TimeControl "40/5400+30:1800+30"]

1. d4 {[%emt 0:00:00]} d5 {[%emt 0:00:00]} 2. Nf3 {[%emt 0:00:28]} Nf6 {[%emt 0:00:25]} 3. Bf4 {[%emt 0:01:04]} e6 {[%emt 0:01:16]} 4. e3 {[%emt 0:00:56]} Bd6 {[%emt 0:00:58]} 5. Bg3 {[%emt 0:02:37]} O-O {[%emt 0:00:26]} 6. Bd3 {[%emt 0:01:06]} b6 {[%emt 0:03:00]} 7. Nbd2 {[%emt 0:01:10]} Bb7 {[%emt 0:00:54]} 8. O-O {[%emt 0:05:05]} Bxg3 {[%emt 0:05:14]} 9. hxg3 {[%emt 0:00:26]} Nbd7 {[%emt 0:00:44]} 10. c4 {[%emt 0:02:41]} c5 {[%emt 0:05:13]} 11. b3 {[%emt 0:01:22]} cxd4 {[%emt 0:09:49]} 12. exd4 {[%emt 0:00:32]} dxc4 {[%emt 0:03:58]} 13. bxc4 {[%emt 0:00:12]} Nc5 {[%emt 0:08:40]} 14. Bc2 {[%emt 0:08:48]} Nce4 {[%emt 0:04:57]} 15. Qe2 {[%emt 0:01:32]} Nxd2 {[%emt 0:02:35]} 16. Qxd2 {[%emt 0:00:19]} Be4 {[%emt 0:09:46]} 17. Bxe4 {[%emt 0:05:24]} Nxe4 {[%emt 0:00:05]} 18. Qe3 {[%emt 0:01:20]} Nd6 {[%emt 0:03:00]} 19. Rac1 {[%emt 0:02:57]} Rc8 {[%emt 0:03:37]} 20. Qd3 {[%emt 0:03:52]} Qf6 {[%emt 0:14:15]} 21. c5 {[%emt 0:05:33]} Nf5 {[%emt 0:06:12]} 22. c6 {[%emt 0:05:24]} Rfd8 {[%emt 0:01:56]} 23. Rfd1 {[%emt 0:13:09]} Rd6 {[%emt 0:02:47]} 24. Qe4 {[%emt 0:06:26]} Qd8 {[%emt 0:07:07]} 25. g4 {[%emt 0:03:43]} Ne7 {[%emt 0:02:13]} 26. Ng5 {[%emt 0:03:32]} Ng6 {[%emt 0:01:24]} 27. f4 {[%emt 0:00:22]} h6 {[%emt 0:00:30]} 28. Nf3 {[%emt 0:00:40]} Ne7 {[%emt 0:01:27]} 29. g5 {[%emt 0:03:17]} Rdxc6 {[%emt 0:00:55]} 30. Rxc6 {[%emt 0:00:34]} Rxc6 {[%emt 0:00:09]} 31. Ne5 {[%emt 0:01:22]} Rc7 {[%emt 0:00:44]} 32. gxh6 {[%emt 0:01:30]} gxh6 {[%emt 0:00:29]} 33. Ng4 {[%emt 0:00:57]} Nf5 {[%emt 0:00:07]} 34. Qe5 {[%emt 0:02:33]} Rc8 {[%emt 0:01:13]} 35. d5 {[%emt 0:01:24]} Rc5 {[%emt 0:00:35]} 36. Nf6+ {[%emt 0:01:06]} Kf8 {[%emt 0:00:16]} 37. Nh7+ {[%emt 0:02:32]} Kg8 {[%emt 0:00:04]} 38. Nf6+ {[%emt 0:01:24]} Kf8 {[%emt 0:00:01]} 39. Nh7+ {[%emt 0:00:00]} 1/2-1/2

[Event "POL-chT 1st League 2020"]
[Site "Ustron"]
[Date "2020.09.07"]
[Round "3.26"]
[White "Paszewski, Mateusz"]
[Black "Janaszak, Dawid"]
[Result "1/2-1/2"]
[ECO "C55"]
[WhiteElo "2275"]
[BlackElo "2356"]
[Annotator "ChessBase"]
[PlyCount "61"]
[EventDate "2020.09.05"]
[EventType "team-tourn"]
[EventCountry "POL"]
[SourceTitle "playchess.com"]
[Source "ChessBase"]
[SourceQuality "1"]
[WhiteTeam "SEMPAI UKS HETMAN Cz."]
[BlackTeam "OTSz Ostrow Wielkopolski"]
[WhiteTeamCountry "POL"]
[BlackTeamCountry "POL"]
[TimeControl "40/5400+30:1800+30"]

1. e4 {[%emt 0:00:00]} e5 {[%emt 0:00:00]} 2. Nf3 {[%emt 0:00:00]} Nc6 {[%emt 0:00:00]} 3. Bc4 {[%emt 0:00:00]} Nf6 {[%emt 0:00:18]} 4. d3 {[%emt 0:00:58]} h6 {[%emt 0:01:25]} 5. O-O {[%emt 0:01:18]} d6 {[%emt 0:00:22]} 6. c3 {[%emt 0:02:42]} g6 {[%emt 0:02:32]} 7. Re1 {[%emt 0:06:05]} Bg7 {[%emt 0:00:13]} 8. Bb3 {[%emt 0:01:38]} O-O {[%emt 0:00:46]} 9. Nbd2 {[%emt 0:01:08]} Qe8 {[%emt 0:02:16]} 10. h3 {[%emt 0:09:57]} Kh8 {[%emt 0:07:52]} 11. Nc4 {[%emt 0:05:29]} Nh5 {[%emt 0:05:42]} 12. d4 {[%emt 0:03:17]} Bd7 {[%emt 0:06:45]} 13. Ne3 {[%emt 0:19:01]} Rc8 {[%emt 0:14:33]} 14. Nd5 {[%emt 0:10:14]} Nd8 {[%emt 0:09:59]} 15. dxe5 {[%emt 0:07:16]} dxe5 {[%emt 0:00:27]} 16. Be3 {[%emt 0:02:11]} Ne6 {[%emt 0:03:48]} 17. Qd2 {[%emt 0:03:39]} g5 {[%emt 0:10:24]} 18. Rad1 {[%emt 0:03:55]} Bc6 {[%emt 0:00:24]} 19. g3 {[%emt 0:03:55]} a5 {[%emt 0:01:29]} 20. Qe2 {[%emt 0:01:03]} f6 {[%emt 0:04:02]} 21. Kh2 {[%emt 0:02:54]} Rf7 {[%emt 0:03:52]} 22. Rd2 {[%emt 0:04:31]} Bf8 {[%emt 0:03:25]} 23. Red1 {[%emt 0:00:47]} Nhg7 {[%emt 0:02:29]} 24. Ne1 {[%emt 0:01:07]} Rd8 {[%emt 0:04:33]} 25. Ng2 {[%emt 0:00:24]} Bd6 {[%emt 0:01:05]} 26. Bc2 {[%emt 0:01:40]} Bb5 {[%emt 0:01:38]} 27. Bd3 {[%emt 0:01:11]} Ba4 {[%emt 0:00:06]} 28. Bc2 {[%emt 0:00:24]} Bb5 {[%emt 0:00:03]} 29. Bd3 {[%emt 0:00:06]} Ba4 {[%emt 0:00:04]} 30. Bc2 {[%emt 0:01:44]} Bb5 {[%emt 0:00:04]} 31. Ra1 1/2-1/2

[Event "POL-chT 1st League 2020"]
[Site "Ustron"]
[Date "2020.09.07"]
[Round "3.27"]
[White "Dudzinski, Pawel"]
[Black "Ciesla, Adam"]
[Result "1/2-1/2"]
[ECO "C42"]
[WhiteElo "2199"]
[BlackElo "2294"]
[Annotator "ChessBase"]
[PlyCount "49"]
[EventDate "2020.09.05"]
[EventType "team-tourn"]
[EventCountry "POL"]
[SourceTitle "playchess.com"]
[Source "ChessBase"]
[SourceQuality "1"]
[WhiteTeam "OTSz Ostrow Wielkopolski"]
[BlackTeam "SEMPAI UKS HETMAN Cz."]
[WhiteTeamCountry "POL"]
[BlackTeamCountry "POL"]
[TimeControl "40/5400+30:1800+30"]

1. e4 {[%emt 0:00:00]} e5 {[%emt 0:00:00]} 2. Nf3 {[%emt 0:00:00]} Nf6 {[%emt 0:00:56]} 3. Nxe5 {[%emt 0:00:00]} Nxe4 {[%emt 0:00:12]} 4. Qe2 {[%emt 0:01:05]} Qe7 {[%emt 0:00:43]} 5. d3 {[%emt 0:00:22]} Qxe5 {[%emt 0:04:48]} 6. Qxe4 {[%emt 0:00:08]} Qxe4+ {[%emt 0:04:31]} 7. dxe4 {[%emt 0:00:02]} Nc6 {[%emt 0:00:37]} 8. Be3 {[%emt 0:06:17]} Bb4+ {[%emt 0:02:03]} 9. c3 {[%emt 0:00:56]} Be7 {[%emt 0:02:43]} 10. Nd2 {[%emt 0:39:55]} d6 {[%emt 0:00:59]} 11. h3 {[%emt 0:08:06]} f5 {[%emt 0:01:51]} 12. Bd3 {[%emt 0:12:46]} O-O {[%emt 0:02:42]} 13. f4 {[%emt 0:09:49]} Bh4+ {[%emt 0:03:08]} 14. Ke2 {[%emt 0:00:39]} Ne7 {[%emt 0:27:53]} 15. Bc4+ {[%emt 0:01:55]} Kh8 {[%emt 0:01:57]} 16. e5 {[%emt 0:05:08]} dxe5 {[%emt 0:08:09]} 17. Nf3 {[%emt 0:07:05]} exf4 {[%emt 0:17:01]} 18. Bxf4 {[%emt 0:00:06]} Ng6 {[%emt 0:00:30]} 19. Bxc7 {[%emt 0:00:24]} Bd7 {[%emt 0:00:42]} 20. Nxh4 {[%emt 0:01:59]} Nxh4 {[%emt 0:00:37]} 21. Bd5 {[%emt 0:00:18]} f4 {[%emt 0:06:13]} 22. Kf2 {[%emt 0:00:40]} Bc6 {[%emt 0:06:54]} 23. Bxc6 {[%emt 0:00:55]} bxc6 {[%emt 0:00:01]} 24. Rhd1 {[%emt 0:00:09]} Rae8 {[%emt 0:01:06]} 25. Re1 {[%emt 0:00:32]} 1/2-1/2

[Event "POL-chT 1st League 2020"]
[Site "Ustron"]
[Date "2020.09.07"]
[Round "3.28"]
[White "Tomaszewski, Roman"]
[Black "Szyszylo, Rafal"]
[Result "1/2-1/2"]
[ECO "B09"]
[WhiteElo "2206"]
[BlackElo "2188"]
[Annotator "ChessBase"]
[PlyCount "122"]
[EventDate "2020.09.05"]
[EventType "team-tourn"]
[EventCountry "POL"]
[SourceTitle "playchess.com"]
[Source "ChessBase"]
[SourceQuality "1"]
[WhiteTeam "SEMPAI UKS HETMAN Cz."]
[BlackTeam "OTSz Ostrow Wielkopolski"]
[WhiteTeamCountry "POL"]
[BlackTeamCountry "POL"]
[TimeControl "40/5400+30:1800+30"]

1. e4 {[%emt 0:00:00]} d6 {[%emt 0:00:00]} 2. d4 {[%emt 0:00:00]} g6 {[%emt 0:00:26]} 3. Nc3 {[%emt 0:00:20]} Bg7 {[%emt 0:00:06]} 4. f4 {[%emt 0:00:23]} Nf6 {[%emt 0:00:09]} 5. Nf3 {[%emt 0:00:32]} c5 {[%emt 0:00:07]} 6. e5 {[%emt 0:16:01]} Nfd7 {[%emt 0:30:14]} 7. exd6 {[%emt 0:39:04]} O-O {[%emt 0:11:24]} 8. Be3 {[%emt 0:02:34]} exd6 {[%emt 0:17:13]} 9. Qd2 {[%emt 0:01:52]} Nc6 {[%emt 0:04:48]} 10. O-O-O {[%emt 0:00:29]} a6 {[%emt 0:04:02]} 11. f5 {[%emt 0:07:04]} cxd4 {[%emt 0:02:49]} 12. Nxd4 {[%emt 0:00:09]} Nxd4 {[%emt 0:00:53]} 13. Bxd4 {[%emt 0:00:08]} Bxd4 {[%emt 0:02:56]} 14. Qxd4 {[%emt 0:00:07]} Qg5+ {[%emt 0:00:10]} 15. Kb1 {[%emt 0:00:06]} Qxf5 {[%emt 0:00:39]} 16. Qxd6 {[%emt 0:16:06]} Qe5 {[%emt 0:00:17]} 17. Bc4 {[%emt 0:02:58]} Qxd6 {[%emt 0:04:03]} 18. Rxd6 {[%emt 0:00:02]} Nc5 {[%emt 0:01:35]} 19. b4 {[%emt 0:04:22]} Be6 {[%emt 0:02:47]} 20. Be2 {[%emt 0:00:12]} Nd7 {[%emt 0:00:28]} 21. Ne4 {[%emt 0:01:05]} Ne5 {[%emt 0:01:17]} 22. Nc5 {[%emt 0:00:25]} Bc4 {[%emt 0:04:15]} 23. Nd7 {[%emt 0:05:03]} Bxe2 {[%emt 0:02:29]} 24. Nxe5 {[%emt 0:00:08]} Rad8 {[%emt 0:03:21]} 25. Rxd8 {[%emt 0:01:16]} Rxd8 {[%emt 0:00:05]} 26. Re1 {[%emt 0:00:03]} Rd1+ {[%emt 0:02:43]} 27. Rxd1 {[%emt 0:00:12]} Bxd1 {[%emt 0:00:02]} 28. a4 {[%emt 0:01:35]} Be2 {[%emt 0:00:48]} 29. Kc1 {[%emt 0:00:12]} Bf1 {[%emt 0:00:17]} 30. g3 {[%emt 0:00:38]} Kf8 {[%emt 0:00:33]} 31. Kd2 {[%emt 0:00:10]} Ke7 {[%emt 0:00:39]} 32. Ke3 {[%emt 0:00:55]} f6 {[%emt 0:00:53]} 33. Ng4 {[%emt 0:00:30]} h5 {[%emt 0:00:57]} 34. Nf2 {[%emt 0:00:07]} Bg2 {[%emt 0:01:11]} 35. a5 {[%emt 0:00:52]} Ke6 {[%emt 0:01:44]} 36. Kd4 {[%emt 0:00:12]} Bc6 37. c4 {[%emt 0:01:10]} g5 {[%emt 0:00:55]} 38. Nd3 {[%emt 0:01:00]} Kf5 {[%emt 0:00:49]} 39. Ke3 {[%emt 0:00:17]} Kg4 {[%emt 0:00:49]} 40. Nf2+ {[%emt 0:00:00]} Kf5 {[%emt 0:00:00]} 41. Kd4 {[%emt 0:04:27]} Bg2 {[%emt 0:06:07]} 42. b5 {[%emt 0:11:53]} axb5 {[%emt 0:01:43]} 43. cxb5 {[%emt 0:00:08]} h4 {[%emt 0:09:10]} 44. Kc5 {[%emt 0:03:12]} hxg3 {[%emt 0:02:06]} 45. hxg3 {[%emt 0:00:10]} Ke6 {[%emt 0:02:38]} 46. Kb6 {[%emt 0:08:20]} f5 {[%emt 0:03:37]} 47. a6 {[%emt 0:06:00]} bxa6 {[%emt 0:00:06]} 48. bxa6 {[%emt 0:00:03]} Kd7 {[%emt 0:07:48]} 49. Kc5 {[%emt 0:00:41]} Ke6 {[%emt 0:00:14]} 50. a7 {[%emt 0:00:19]} Ke5 {[%emt 0:00:50]} 51. Nd3+ {[%emt 0:00:17]} Ke6 {[%emt 0:00:40]} 52. Kd4 {[%emt 0:00:11]} Kd6 {[%emt 0:00:20]} 53. Ne5 {[%emt 0:01:12]} Kc7 {[%emt 0:00:15]} 54. Nf7 {[%emt 0:00:28]} Kb7 {[%emt 0:01:40]} 55. Nxg5 {[%emt 0:00:10]} Kxa7 {[%emt 0:00:04]} 56. Ke5 {[%emt 0:00:07]} Kb6 {[%emt 0:00:14]} 57. Kxf5 {[%emt 0:00:06]} Kc6 {[%emt 0:00:30]} 58. Kf6 {[%emt 0:00:30]} Bf1 {[%emt 0:00:31]} 59. Nf3 {[%emt 0:00:58]} Bh3 {[%emt 0:00:18]} 60. Nd4+ {[%emt 0:00:50]} Kd7 {[%emt 0:00:30]} 61. Ne2 {[%emt 0:00:05]} Bg4 {[%emt 0:00:38]} 1/2-1/2

[Event "POL-chT 1st League 2020"]
[Site "Ustron"]
[Date "2020.09.07"]
[Round "3.29"]
[White "Kucza, Karol"]
[Black "Flis, Jacek"]
[Result "1/2-1/2"]
[ECO "B48"]
[WhiteElo "2285"]
[BlackElo "2214"]
[Annotator "ChessBase"]
[PlyCount "123"]
[EventDate "2020.09.05"]
[EventType "team-tourn"]
[EventCountry "POL"]
[SourceTitle "playchess.com"]
[Source "ChessBase"]
[SourceQuality "1"]
[WhiteTeam "OTSz Ostrow Wielkopolski"]
[BlackTeam "SEMPAI UKS HETMAN Cz."]
[WhiteTeamCountry "POL"]
[BlackTeamCountry "POL"]
[TimeControl "40/5400+30:1800+30"]

1. e4 {[%emt 0:00:00]} c5 {[%emt 0:00:00]} 2. Nf3 {[%emt 0:00:00]} e6 {[%emt 0:00:00]} 3. d4 {[%emt 0:00:00]} cxd4 {[%emt 0:00:00]} 4. Nxd4 {[%emt 0:00:00]} Nc6 {[%emt 0:00:00]} 5. Nc3 {[%emt 0:00:03]} Qc7 {[%emt 0:00:30]} 6. Be3 {[%emt 0:00:14]} a6 {[%emt 0:00:12]} 7. Qd2 {[%emt 0:00:14]} Nf6 {[%emt 0:01:00]} 8. O-O-O {[%emt 0:00:22]} Be7 {[%emt 0:02:55]} 9. f4 {[%emt 0:04:33]} d5 {[%emt 0:02:37]} 10. exd5 {[%emt 0:06:36]} exd5 {[%emt 0:01:09]} 11. Nb3 {[%emt 0:04:12]} O-O {[%emt 0:02:58]} 12. Nxd5 {[%emt 0:13:45]} Nxd5 {[%emt 0:02:01]} 13. Qxd5 {[%emt 0:00:07]} Bg4 {[%emt 0:24:26]} 14. Re1 {[%emt 0:25:22]} Rad8 {[%emt 0:22:47]} 15. Qe4 {[%emt 0:00:54]} Bb4 {[%emt 0:04:01]} 16. Bc5 {[%emt 0:12:42]} Bxc5 {[%emt 0:07:42]} 17. Nxc5 {[%emt 0:00:26]} Nd4 {[%emt 0:13:11]} 18. Bd3 {[%emt 0:02:39]} g6 {[%emt 0:02:15]} 19. Qe5 {[%emt 0:01:13]} Rc8 {[%emt 0:06:57]} 20. Qxd4 {[%emt 0:03:01]} Rfd8 {[%emt 0:02:29]} 21. Qe5 {[%emt 0:02:20]} Qxc5 {[%emt 0:00:36]} 22. Qxc5 {[%emt 0:00:14]} Rxc5 {[%emt 0:00:05]} 23. Re3 {[%emt 0:01:06]} Be6 {[%emt 0:00:40]} 24. a3 {[%emt 0:01:36]} Bd5 {[%emt 0:01:36]} 25. Rg1 {[%emt 0:00:34]} Rc7 {[%emt 0:00:58]} 26. g3 {[%emt 0:00:18]} Kg7 {[%emt 0:00:09]} 27. Rge1 {[%emt 0:00:10]} Be6 {[%emt 0:01:00]} 28. Be4 {[%emt 0:01:59]} Kf6 {[%emt 0:00:30]} 29. Rd1 {[%emt 0:01:53]} Rxd1+ {[%emt 0:00:33]} 30. Kxd1 {[%emt 0:00:09]} Bf5 {[%emt 0:00:33]} 31. Bxf5 {[%emt 0:02:06]} Kxf5 {[%emt 0:00:36]} 32. h3 {[%emt 0:00:09]} f6 {[%emt 0:00:06]} 33. c3 {[%emt 0:04:30]} h5 {[%emt 0:00:12]} 34. Rf3 {[%emt 0:00:47]} Rd7+ {[%emt 0:00:42]} 35. Ke2 {[%emt 0:00:06]} h4 {[%emt 0:01:04]} 36. gxh4 {[%emt 0:01:43]} Rh7 {[%emt 0:00:25]} 37. Kf2 {[%emt 0:00:05]} Rxh4 {[%emt 0:00:12]} 38. Kg3 {[%emt 0:00:04]} Rh7 {[%emt 0:00:12]} 39. Rd3 {[%emt 0:00:04]} Re7 {[%emt 0:01:12]} 40. Rd5+ {[%emt 0:00:00]} Ke6 {[%emt 0:00:00]} 41. c4 {[%emt 0:03:11]} Rc7 {[%emt 0:01:23]} 42. b3 {[%emt 0:03:36]} b5 {[%emt 0:04:29]} 43. Rd4 {[%emt 0:00:15]} a5 {[%emt 0:03:25]} 44. Kg4 {[%emt 0:08:17]} bxc4 {[%emt 0:04:12]} 45. Rxc4 {[%emt 0:00:44]} Rb7 {[%emt 0:00:38]} 46. Rc6+ {[%emt 0:06:03]} Kf7 {[%emt 0:00:57]} 47. Rc3 {[%emt 0:00:15]} Rb5 {[%emt 0:09:23]} 48. Kf3 {[%emt 0:02:40]} Ke6 {[%emt 0:00:57]} 49. Ke4 {[%emt 0:00:31]} Kd6 {[%emt 0:00:44]} 50. Rd3+ {[%emt 0:00:36]} Ke6 {[%emt 0:01:36]} 51. Rg3 {[%emt 0:01:49]} Kd6 {[%emt 0:04:21]} 52. h4 {[%emt 0:03:27]} Ke6 {[%emt 0:01:01]} 53. Re3 {[%emt 0:05:49]} Kd6 {[%emt 0:00:27]} 54. Kf3 {[%emt 0:01:17]} Rf5 {[%emt 0:00:57]} 55. Kg4 {[%emt 0:00:30]} Rb5 {[%emt 0:00:23]} 56. Rf3 {[%emt 0:02:01]} Ke6 {[%emt 0:00:46]} 57. f5+ {[%emt 0:02:28]} gxf5+ {[%emt 0:00:26]} 58. Kf4 {[%emt 0:00:32]} Rd5 {[%emt 0:01:24]} 59. Re3+ {[%emt 0:00:48]} Kf7 {[%emt 0:00:19]} 60. h5 {[%emt 0:00:19]} Rd4+ {[%emt 0:01:01]} 61. Kxf5 {[%emt 0:00:13]} Rh4 {[%emt 0:00:16]} 62. Rc3 {[%emt 0:02:20]} 1/2-1/2

[Event "POL-chT 1st League 2020"]
[Site "Ustron"]
[Date "2020.09.07"]
[Round "3.30"]
[White "Lach, Aleksandra"]
[Black "Czerwinska, Milena"]
[Result "1-0"]
[ECO "E71"]
[WhiteElo "2188"]
[BlackElo "2010"]
[Annotator "ChessBase"]
[PlyCount "155"]
[EventDate "2020.09.05"]
[EventType "team-tourn"]
[EventCountry "POL"]
[SourceTitle "playchess.com"]
[Source "ChessBase"]
[SourceQuality "1"]
[WhiteTeam "SEMPAI UKS HETMAN Cz."]
[BlackTeam "OTSz Ostrow Wielkopolski"]
[WhiteTeamCountry "POL"]
[BlackTeamCountry "POL"]
[TimeControl "40/5400+30:1800+30"]

1. d4 {[%emt 0:00:00]} Nf6 {[%emt 0:00:00]} 2. c4 {[%emt 0:00:00]} g6 {[%emt 0:00:00]} 3. Nc3 {[%emt 0:00:17]} d6 {[%emt 0:00:25]} 4. e4 {[%emt 0:01:17]} Bg7 {[%emt 0:00:12]} 5. h3 {[%emt 0:00:22]} O-O {[%emt 0:01:54]} 6. Be3 {[%emt 0:00:17]} e5 {[%emt 0:05:38]} 7. d5 {[%emt 0:00:49]} c6 {[%emt 0:03:53]} 8. g4 {[%emt 0:01:35]} cxd5 {[%emt 0:02:52]} 9. cxd5 {[%emt 0:00:19]} Qa5 {[%emt 0:16:02]} 10. Qd2 {[%emt 0:08:10]} a6 {[%emt 0:06:46]} 11. b4 {[%emt 0:14:37]} Qd8 {[%emt 0:04:26]} 12. Nge2 {[%emt 0:10:13]} b5 {[%emt 0:06:41]} 13. Ng3 {[%emt 0:04:54]} Nbd7 {[%emt 0:06:12]} 14. a4 {[%emt 0:15:07]} bxa4 {[%emt 0:05:23]} 15. Nxa4 {[%emt 0:00:24]} Ne8 {[%emt 0:03:36]} 16. Nb2 {[%emt 0:11:00]} Nb6 {[%emt 0:13:10]} 17. Be2 {[%emt 0:07:49]} Bb7 {[%emt 0:14:50]} 18. Rc1 {[%emt 0:01:46]} Rc8 {[%emt 0:03:00]} 19. O-O {[%emt 0:01:00]} Nf6 {[%emt 0:00:47]} 20. Rxc8 {[%emt 0:00:54]} Bxc8 {[%emt 0:01:05]} 21. Rc1 {[%emt 0:05:36]} Bb7 {[%emt 0:00:40]} 22. Bxb6 {[%emt 0:07:00]} Qxb6 {[%emt 0:00:05]} 23. Nc4 {[%emt 0:00:09]} Qd8 {[%emt 0:00:31]} 24. g5 {[%emt 0:00:28]} Ne8 {[%emt 0:01:06]} 25. Na5 {[%emt 0:00:11]} Qb6 {[%emt 0:02:21]} 26. Nxb7 {[%emt 0:03:53]} Qxb7 {[%emt 0:00:04]} 27. Rc6 {[%emt 0:00:07]} Nc7 {[%emt 0:00:12]} 28. Rxd6 {[%emt 0:01:02]} Rb8 {[%emt 0:00:53]} 29. Rd7 {[%emt 0:01:02]} Qb6 {[%emt 0:00:29]} 30. d6 {[%emt 0:01:20]} Ne6 {[%emt 0:00:49]} 31. Bc4 {[%emt 0:00:14]} Bf8 {[%emt 0:00:47]} 32. Qd5 {[%emt 0:01:44]} Re8 {[%emt 0:00:09]} 33. Rb7 {[%emt 0:01:08]} Qxd6 {[%emt 0:00:28]} 34. Qxd6 {[%emt 0:00:50]} Bxd6 {[%emt 0:00:04]} 35. Bxe6 {[%emt 0:00:07]} Rxe6 {[%emt 0:00:22]} 36. Nf1 {[%emt 0:00:52]} f6 {[%emt 0:01:19]} 37. gxf6 {[%emt 0:00:20]} Rxf6 {[%emt 0:00:06]} 38. Ne3 {[%emt 0:00:07]} Rf7 {[%emt 0:00:57]} 39. Rb6 {[%emt 0:00:15]} Bf8 {[%emt 0:00:31]} 40. Ng4 {[%emt 0:00:00]} Ra7 {[%emt 0:00:00]} 41. Nxe5 {[%emt 0:03:59]} Re7 {[%emt 0:17:44]} 42. Ng4 {[%emt 0:07:02]} Ra7 {[%emt 0:01:45]} 43. Nf6+ {[%emt 0:05:57]} Kg7 {[%emt 0:00:42]} 44. e5 {[%emt 0:03:13]} h5 {[%emt 0:02:29]} 45. Kg2 {[%emt 0:07:20]} a5 {[%emt 0:01:30]} 46. bxa5 {[%emt 0:00:44]} Rxa5 {[%emt 0:00:04]} 47. Rb7+ {[%emt 0:00:04]} Kh6 {[%emt 0:00:27]} 48. Rh7+ {[%emt 0:00:37]} Kg5 {[%emt 0:00:16]} 49. Rf7 {[%emt 0:00:32]} Ba3 {[%emt 0:01:17]} 50. Ne4+ {[%emt 0:00:44]} Kh6 {[%emt 0:00:21]} 51. f4 {[%emt 0:00:33]} Bc1 {[%emt 0:02:03]} 52. h4 {[%emt 0:00:50]} Bxf4 {[%emt 0:05:19]} 53. Rxf4 {[%emt 0:00:20]} Rxe5 {[%emt 0:00:05]} 54. Ng5 {[%emt 0:00:41]} Re7 {[%emt 0:00:54]} 55. Rf6 {[%emt 0:00:41]} Kg7 {[%emt 0:00:44]} 56. Ra6 {[%emt 0:00:16]} Rb7 {[%emt 0:01:05]} 57. Ne6+ {[%emt 0:02:51]} Kh7 {[%emt 0:00:38]} 58. Nf8+ {[%emt 0:01:40]} Kg7 {[%emt 0:00:11]} 59. Nxg6 {[%emt 0:00:10]} Rb4 {[%emt 0:00:19]} 60. Kf3 {[%emt 0:00:20]} Rg4 {[%emt 0:00:50]} 61. Ne7 {[%emt 0:00:18]} Kf7 {[%emt 0:00:47]} 62. Nf5 {[%emt 0:00:13]} Rb4 {[%emt 0:00:47]} 63. Rh6 {[%emt 0:00:20]} Ra4 {[%emt 0:00:22]} 64. Kg3 {[%emt 0:01:10]} Rg4+ {[%emt 0:00:14]} 65. Kh3 {[%emt 0:00:17]} Rf4 {[%emt 0:00:35]} 66. Ng3 {[%emt 0:00:10]} Ra4 {[%emt 0:01:04]} 67. Nxh5 {[%emt 0:00:27]} Rb4 {[%emt 0:00:13]} 68. Kg3 {[%emt 0:00:12]} Ra4 {[%emt 0:00:07]} 69. Nf4 {[%emt 0:00:17]} Kg7 {[%emt 0:00:11]} 70. Rd6 {[%emt 0:00:10]} Kh7 {[%emt 0:00:13]} 71. Kg4 {[%emt 0:00:11]} Kg7 {[%emt 0:00:07]} 72. Rd5 {[%emt 0:00:23]} Kh7 {[%emt 0:00:06]} 73. Kg5 {[%emt 0:00:10]} Ra1 74. Rd7+ {[%emt 0:00:29]} Kg8 {[%emt 0:00:15]} 75. h5 {[%emt 0:01:11]} Rg1+ {[%emt 0:00:11]} 76. Kh6 {[%emt 0:00:30]} Rf1 {[%emt 0:00:13]} 77. Ng6 {[%emt 0:00:37]} Rg1 {[%emt 0:00:17]} 78. Rg7# {[%emt 0:00:05]} 1-0